bitfinex/quotes_ETHUSD_20250623
["timestamp","ask_amount","ask_price","bid_price","bid_amount"]
[1750676554882,2.077,2254.0,2253.4,0.78832765]
[1750676555078,0.225,2254.0,2253.4,0.78832765]
[1750676555294,1.852,2254.0,2253.6,0.8114]
[1750676555728,1.852,2254.0,2253.7,0.04436584]
[1750676555910,0.775,2254.5,2253.7,0.04436584]
[1750676556215,1.852,2254.2,2253.6,0.8114]
[1750676558624,0.04468394,2254.3,2253.6,0.8114]
[1750676558799,1.852,2254.2,2253.7,0.04436367]
[1750676558999,1.852,2254.2,2253.8,0.7631]
[1750676561032,1.852,2254.2,2253.9,1.333668]
[1750676561398,0.225,2254.5,2253.9,1.333668]
[1750676561746,1.851,2254.4,2253.9,1.333668]
[1750676562227,10.669,2254.6,2254.1,0.8275]
[1750676562434,1.851,2254.5,2254.2,0.04435617]
[1750676562632,0.2250348,2254.8,2254.3,0.7945]
[1750676562803,2.0760348,2254.8,2254.4,0.04435305]
[1750676565797,2.0760348,2254.8,2254.3,2.56433204]
[1750676565999,0.04468394,2254.7,2254.3,2.127908]
[1750676566301,0.04468394,2254.7,2254.3,0.7945]
[1750676566500,9.37291133,2254.8,2254.3,0.7945]
[1750676566700,10.31020246,2254.8,2254.3,0.7945]
[1750676568722,2.0760348,2254.8,2254.3,0.7945]
[1750676570334,2.12071874,2254.8,2254.3,0.7945]
[1750676572236,0.225,2254.7,2253.9,2.086667]
[1750676572641,0.26968394,2254.7,2253.9,12.53250593]
[1750676572841,7.07187653,2254.6,2253.9,0.7531]
[1750676573071,0.04468394,2254.5,2253.9,0.7531]
[1750676575559,7.29687653,2254.4,2253.7,1.77613531]
[1750676575767,7.07187653,2254.0,2253.5,0.8331]
[1750676576075,7.07187653,2253.6,2253.2,1.334018]
[1750676576277,1.851,2253.5,2253.0,0.8331]
[1750676576644,1.89568394,2253.5,2253.0,0.8331]
[1750676577373,7.29687653,2253.4,2252.7,0.8262]
[1750676577581,0.04468394,2253.3,2252.7,0.8262]
[1750676578334,7.437,2253.4,2252.7,0.8262]
[1750676578535,0.04468394,2253.3,2252.7,0.8262]
[1750676579932,9.39717246,2253.4,2252.7,0.8262]
[1750676580365,9.39717246,2253.4,2252.7,5.70200583]
[1750676580366,1.851,2253.3,2252.7,5.70200583]
[1750676580667,1.851,2253.4,2252.9,0.8267]
[1750676580966,1.851,2253.4,2253.0,0.04437857]
[1750676581163,1.851,2253.7,2253.2,0.8267]
[1750676581463,1.851,2253.7,2253.3,0.5264851]
[1750676582845,1.89568394,2254.0,2253.4,0.785]
[1750676585573,0.225,2253.9,2253.4,0.785]
[1750676587354,0.04468394,2253.8,2253.2,0.752]
[1750676587556,0.225,2253.9,2253.2,0.752]
[1750676587889,1.4326,2253.9,2253.2,0.752]
[1750676590185,0.04468394,2253.8,2253.2,0.752]
[1750676590879,1.4326,2253.9,2253.2,0.752]
[1750676591586,1.866,2253.8,2253.3,0.0443778]
[1750676591820,10.225,2254.1,2253.2,0.752]
[1750676591969,1.866,2253.7,2253.2,0.752]
[1750676592566,1.866,2253.7,2253.2,1.31542304]
[1750676592763,1.866,2253.7,2253.2,0.79637129]
[1750676593554,1.866,2253.7,2253.2,0.752]
[1750676594580,1.866,2253.8,2253.3,0.04437605]
[1750676594769,1.866,2253.8,2253.4,0.7617]
[1750676595892,1.866,2253.8,2253.4,0.80607114]
[1750676596794,1.866,2253.8,2253.4,0.7617]
[1750676601310,0.04468394,2253.7,2253.4,0.7617]
[1750676603011,1.866,2253.8,2253.4,0.7617]
[1750676604312,2.75988486,2253.8,2253.4,0.7617]
[1750676604910,1.866,2253.8,2253.4,0.7617]
[1750676606908,0.04468394,2253.7,2253.4,0.7617]
[1750676609318,0.04468394,2253.7,2253.2,0.8324]
[1750676609508,1.866,2253.8,2253.2,0.8324]
[1750676615617,1.866,2253.8,2253.2,0.87677646]
[1750676616948,0.225,2253.3,2252.8,0.7846]
[1750676617107,7.02816464,2253.0,2252.8,0.7846]
[1750676617308,0.04468394,2252.9,2252.5,1.334392]
[1750676617520,7.02816464,2252.8,2252.3,0.8307]
[1750676617816,2.59578486,2252.7,2252.0,0.8307]
[1750676618147,7.02816464,2253.3,2252.1,0.04440078]
[1750676618344,1.866,2252.8,2252.2,0.8307]
[1750676618504,1.866,2252.8,2252.3,0.04439422]
[1750676619437,1.866,2252.8,2252.2,0.8307]
[1750676619640,1.866,2252.8,2252.3,0.04439422]
[1750676620538,1.866,2252.8,2252.2,0.8307]
[1750676620739,1.866,2252.8,2252.2,1.91377]
[1750676620942,1.866,2252.8,2252.3,0.04439423]
[1750676621858,1.866,2252.8,2252.2,1.91377]
[1750676622720,1.866,2252.8,2252.3,0.04439423]
[1750676624144,0.04468394,2252.7,2252.2,0.8307]
[1750676624612,0.225,2252.6,2252.0,0.7676]
[1750676624941,0.04468394,2252.5,2252.0,0.7676]
[1750676625348,0.04468394,2252.5,2251.6,1.334932]
[1750676625349,0.55,2252.4,2251.8,0.7676]
[1750676625546,0.04468394,2252.3,2251.8,0.7676]
[1750676625746,1.96668394,2252.3,2251.8,0.7676]
[1750676625950,0.80166839,2252.2,2251.8,0.7676]
[1750676627144,0.25166839,2252.2,2251.8,0.7676]
[1750676627349,1.922,2252.3,2251.8,0.7676]
[1750676627547,0.59468394,2252.2,2251.1,14.44223928]
[1750676627750,0.81968394,2252.2,2251.6,0.8163]
[1750676629657,0.55,2252.1,2251.1,0.7624]
[1750676629821,0.55,2251.9,2251.1,0.7624]
[1750676630149,1.96668394,2251.8,2251.1,0.7624]
[1750676630650,1.922,2251.8,2251.2,0.04441672]
[1750676630819,1.922,2252.1,2251.4,0.7684]
[1750676631023,1.922,2252.2,2251.6,0.7684]
[1750676632043,1.922,2252.2,2251.6,0.81280784]
[1750676632630,1.922,2252.2,2251.6,0.7684]
[1750676632631,0.04468394,2252.1,2251.6,0.7684]
[1750676632928,0.81968394,2252.1,2251.6,0.7684]
[1750676633134,0.775,2252.1,2251.6,0.7684]
[1750676633338,1.7763,2252.1,2251.6,0.7684]
[1750676634140,1.2263,2252.1,2251.6,0.7684]
[1750676634342,0.225,2252.1,2251.6,0.7684]
[1750676639842,0.55,2252.2,2251.6,0.7684]
[1750676640550,1.923,2252.2,2251.6,0.7684]
[1750676641272,0.26968394,2252.1,2251.6,0.7684]
[1750676642357,0.55,2252.0,2251.6,0.7684]
[1750676643272,0.8198,2252.0,2251.6,0.7684]
[1750676644840,1.923,2252.2,2251.6,0.7684]
[1750676646666,1.923,2252.3,2251.7,0.04441114]
[1750676646970,1.923,2252.3,2251.8,0.8295]
[1750676647157,12.595,2252.7,2252.0,0.7724]
[1750676647361,14.6064,2252.7,2252.0,0.7724]
[1750676647562,0.04468394,2252.6,2252.0,0.7724]
[1750676647870,0.55,2252.6,2252.0,0.7724]
[1750676649979,0.04468394,2252.5,2252.0,0.7724]
[1750676651182,0.55,2252.4,2252.0,0.7724]
[1750676651368,7.289,2252.3,2252.0,0.7724]
[1750676651574,0.7839,2252.2,2252.0,0.7724]
[1750676651774,0.04468394,2252.1,2252.0,0.7724]
[1750676651976,7.289,2252.3,2252.0,0.7724]
[1750676654289,9.732,2252.6,2252.0,0.7724]
[1750676654471,1.897,2252.6,2252.1,0.04440095]
[1750676654666,1.897,2252.6,2252.2,0.7513]
[1750676654969,1.94168394,2252.6,2252.2,0.7513]
[1750676655566,1.897,2253.1,2252.4,0.7905]
[1750676655778,2.96096556,2253.5,2252.6,0.7905]
[1750676656078,7.32768394,2253.4,2252.7,0.7905]
[1750676658660,7.287,2253.4,2252.7,0.7905]
[1750676659061,1.897,2253.5,2252.8,0.0443857]
[1750676659263,7.286,2253.4,2252.9,0.8005]
[1750676659756,0.04468394,2253.4,2252.9,1.88055]
[1750676659963,10.672,2253.6,2253.0,0.7613]
[1750676659964,19.854,2253.6,2253.0,0.7613]
[1750676660162,0.04468394,2253.5,2253.0,0.7613]
[1750676660575,19.854,2253.6,2253.0,0.7613]
[1750676661089,0.04468394,2253.5,2253.0,0.7613]
[1750676661286,19.854,2253.6,2253.0,0.7613]
[1750676661493,0.04468394,2253.5,2253.0,1.84186814]
[1750676661798,0.04468394,2253.5,2253.0,0.7613]
[1750676665772,12.569,2253.6,2253.0,0.7613]
[1750676666307,19.844,2253.6,2253.0,0.7613]
[1750676668000,0.55,2254.0,2253.0,0.7613]
[1750676668206,7.824,2253.7,2253.0,0.7613]
[1750676668401,8.7961,2253.7,2253.0,0.7613]
[1750676670576,0.55,2253.5,2253.0,0.7613]
[1750676670772,0.775,2253.3,2252.8,0.7542]
[1750676670971,0.775,2253.3,2252.2,0.7542]
[1750676670972,0.55,2253.1,2252.2,0.7542]
[1750676671211,0.04468394,2253.0,2252.3,0.26512]
[1750676671380,0.04468394,2253.0,2252.4,0.7828]
[1750676672398,0.55,2252.9,2252.4,0.7828]
[1750676672598,7.31168394,2252.8,2252.4,0.7828]
[1750676676237,0.55,2252.7,2252.4,0.7828]
[1750676676386,1.35866839,2252.7,2252.4,0.7828]
[1750676676587,0.55,2252.7,2252.4,0.7828]
[1750676681116,9.16,2252.8,2252.4,0.7828]
[1750676681320,2.25570551,2253.1,2252.4,0.7828]
[1750676681321,9.154,2252.9,2252.4,0.7828]
[1750676682710,1.897,2253.1,2252.4,0.7828]
[1750676682888,0.04468394,2253.0,2252.4,0.7828]
[1750676683085,0.04468394,2253.0,2252.6,0.8065]
[1750676683983,1.897,2253.1,2252.6,0.8065]
[1750676686589,0.04468394,2253.0,2252.6,0.8065]
[1750676687327,8.929329,2253.1,2252.6,0.8065]
[1750676689027,0.55,2252.9,2252.6,0.8065]
[1750676689328,0.55,2253.0,2252.6,0.8065]
[1750676689530,2.4979329,2253.0,2252.6,0.8065]
[1750676691619,0.04468394,2252.9,2252.6,0.8065]
[1750676694132,2.4979329,2253.0,2252.6,0.8065]
[1750676697638,0.04468394,2252.9,2252.6,0.8065]
[1750676699639,7.032329,2252.7,2252.3,0.8093]
[1750676699805,0.04468394,2252.6,2252.3,0.8093]
[1750676700544,14.831329,2252.5,2252.0,0.8236]
[1750676700772,7.582329,2252.3,2252.0,0.8236]
[1750676701227,0.55,2252.1,2251.5,0.8236]
[1750676701559,0.55,2251.9,2251.5,0.8236]
[1750676701713,0.55,2251.9,2251.1,1.335301]
[1750676701714,7.032329,2251.7,2251.2,0.75]
[1750676701912,0.04468394,2251.6,2251.2,0.75]
[1750676704067,7.261,2251.7,2251.2,0.75]
[1750676707057,0.55,2251.6,2251.2,0.75]
[1750676708361,2.434,2251.6,2251.2,0.75]
[1750676708536,0.55,2251.2,2250.0,0.7674]
[1750676708723,7.032329,2250.8,2250.0,0.7674]
[1750676708917,7.032329,2250.8,2250.0,1.1661349]
[1750676708918,0.04468394,2250.7,2250.0,1.1661349]
[1750676709254,0.55,2250.6,2250.0,1.1661349]
[1750676709572,0.04468394,2250.5,2250.0,0.7674]
[1750676710243,0.55,2250.4,2250.0,0.7674]
[1750676710426,0.04468394,2250.3,2250.0,0.7674]
[1750676711154,0.55,2250.2,2249.6,0.7909]
[1750676711351,0.55,2250.4,2249.6,0.7909]
[1750676711555,0.55,2250.4,2249.6,10.7909]
[1750676711556,2.2458329,2250.4,2249.6,10.7909]
[1750676711859,0.55,2250.4,2249.7,7.032329]
[1750676712019,9.151,2250.6,2249.8,7.859529]
[1750676712356,0.04468394,2250.5,2249.8,0.8272]
[1750676712525,0.04468394,2250.5,2249.8,5.27195748]
[1750676712925,0.55,2250.4,2249.8,0.8272]
[1750676713126,0.04468394,2250.3,2249.8,0.8272]
[1750676713657,1.52456839,2250.4,2249.8,0.8272]
[1750676713861,0.04468394,2250.3,2249.8,0.8272]
[1750676714059,0.55,2250.2,2249.8,0.8272]
[1750676714434,0.55,2250.2,2249.6,0.0367]
[1750676714634,0.55,2250.2,2249.6,0.842]
[1750676715355,0.55,2250.2,2249.6,11.37520767]
[1750676715538,0.55,2250.2,2249.6,1.37520767]
[1750676716263,0.04468394,2250.1,2249.6,0.842]
[1750676717060,0.04468394,2250.1,2249.6,0.0367]
[1750676717061,0.225,2249.9,2249.6,0.0367]
[1750676717247,0.59468394,2249.8,2249.6,0.0367]
[1750676717453,2.44,2249.7,2249.6,0.0367]
[1750676717957,2.48468394,2249.7,2249.6,0.0367]
[1750676719360,3.70875233,2249.7,2249.6,0.0367]
[1750676720242,3.66406839,2249.7,2249.6,0.0367]
[1750676720440,13.66406839,2249.7,2249.6,0.0367]
[1750676721226,24.00138476,2249.7,2249.6,0.0367]
[1750676721847,24.58725018,2249.7,2249.6,0.0367]
[1750676722561,0.225,2249.3,2248.3,0.7771]
[1750676722732,0.55,2249.0,2248.3,0.7771]
[1750676722931,0.775,2248.8,2248.3,0.7771]
[1750676723136,7.32868394,2248.7,2248.3,0.7771]
[1750676723556,9.21968394,2248.7,2248.0,0.8006]
[1750676723761,0.775,2248.8,2248.1,10.0]
[1750676723967,1.891,2248.9,2248.5,0.8006]
[1750676724186,10.99906839,2249.7,2248.5,0.8006]
[1750676724187,9.186,2249.3,2248.8,0.7866]
[1750676724335,1.22406839,2249.7,2248.8,7.20139019]
[1750676724336,9.187,2249.4,2248.8,7.20139019]
[1750676724542,9.187,2249.4,2248.8,2.75465537]
[1750676724841,0.55,2249.2,2248.8,0.7866]
[1750676725040,0.04468394,2249.1,2248.8,0.7866]
[1750676725255,0.55,2249.0,2248.3,0.7802]
[1750676725432,0.55,2248.8,2248.3,0.7802]
[1750676725766,0.04468394,2248.7,2248.3,0.7802]
[1750676726765,9.194,2248.8,2248.3,0.7802]
[1750676727266,0.04468394,2248.7,2248.3,0.7802]
[1750676727472,0.55,2249.1,2248.3,1.30301931]
[1750676727660,0.55,2248.9,2248.3,0.7802]
[1750676728235,0.04468394,2248.9,2248.3,0.7802]
[1750676728441,1.892,2249.0,2248.4,0.0444709]
[1750676728642,0.04468394,2248.9,2248.3,0.7802]
[1750676729869,0.04468394,2249.0,2248.3,0.7802]
[1750676730050,0.04468394,2249.0,2248.3,3.78156323]
[1750676730474,0.55,2248.9,2248.3,0.7802]
[1750676730676,0.04468394,2248.8,2248.3,0.7802]
[1750676730875,0.59468394,2249.0,2248.3,0.7802]
[1750676731177,0.55,2249.0,2248.3,5.22786986]
[1750676731478,1.892,2249.0,2248.3,7.23994318]
[1750676731676,0.04468394,2248.9,2248.3,0.82467543]
[1750676731865,0.04468394,2248.9,2248.3,0.7802]
[1750676732782,0.55,2248.8,2248.3,0.7802]
[1750676732957,0.04468394,2248.7,2248.3,0.7802]
[1750676734784,0.775,2248.8,2248.3,0.7802]
[1750676734960,1.892,2248.7,2248.3,0.7802]
[1750676735882,0.225,2249.2,2248.3,4.44767122]
[1750676736050,1.892,2248.9,2248.4,0.7936]
[1750676736256,0.04468394,2248.8,2248.4,0.7936]
[1750676736854,1.892,2248.9,2248.4,0.7936]
[1750676737253,0.04468394,2248.8,2248.4,0.7936]
[1750676737560,0.26968394,2248.8,2248.4,0.7936]
[1750676738250,1.892,2248.9,2248.4,0.7936]
[1750676738764,0.04468394,2248.8,2248.4,0.7936]
[1750676739486,0.55,2248.5,2248.0,0.8191]
[1750676739794,0.04468394,2248.4,2248.0,0.8191]
[1750676740373,1.93668394,2248.4,2248.0,0.8191]
[1750676740722,0.24866839,2248.3,2248.0,0.8191]
[1750676741000,0.55,2248.7,2248.0,0.8191]
[1750676741202,0.55,2248.5,2248.0,0.8191]
[1750676744003,0.04468394,2248.4,2248.0,0.8191]
[1750676744369,0.55,2248.5,2248.0,0.8191]
[1750676744599,0.04468394,2248.4,2248.0,0.8191]
[1750676744783,1.02365233,2248.4,2248.0,0.8191]
[1750676746275,1.20396839,2248.4,2247.7,0.7933]
[1750676746470,0.97896839,2248.4,2247.7,0.7933]
[1750676748074,0.55,2248.5,2247.9,0.779]
[1750676748319,1.903,2248.4,2247.9,0.779]
[1750676749081,0.04468394,2248.3,2247.9,0.779]
[1750676749381,0.59468394,2248.3,2247.9,0.779]
[1750676750998,0.04468394,2248.3,2247.9,0.779]
[1750676751206,0.55,2248.2,2247.9,0.779]
[1750676751520,0.04468394,2248.1,2247.9,0.779]
[1750676751716,0.04468394,2248.1,2247.3,10.0]
[1750676751884,0.04468394,2248.1,2247.5,0.7641]
[1750676752286,0.55,2248.3,2247.5,0.7641]
[1750676753528,0.55,2248.5,2247.6,0.7588]
[1750676753728,1.2881837,2248.6,2247.8,0.7588]
[1750676753729,0.225,2248.6,2247.8,0.7588]
[1750676753904,1.903,2248.5,2247.8,0.61470155]
[1750676754105,0.55,2248.4,2247.8,0.61470155]
[1750676754313,0.55,2248.4,2247.6,0.02203925]
[1750676754534,0.55,2248.4,2247.6,4.47122843]
[1750676754727,1.903,2248.5,2247.6,0.02203925]
[1750676754892,1.903,2248.5,2247.6,4.47121372]
[1750676755092,1.903,2248.5,2247.6,0.02203925]
[1750676755412,0.05560393,2248.4,2247.6,2.07031263]
[1750676756632,0.05560393,2248.4,2247.6,16.51948912]
[1750676756931,0.05560393,2248.4,2247.7,0.7678]
[1750676757797,1.95860123,2248.5,2247.9,0.799]
[1750676758926,1.903,2248.5,2248.0,0.02202681]
[1750676759131,0.816,2249.8,2248.1,0.8248]
[1750676759330,0.816,2249.8,2248.9,0.8248]
[1750676759492,0.05557298,2249.7,2249.0,0.0219753]
[1750676759690,0.05557298,2249.7,2248.9,0.8248]
[1750676759895,0.55,2249.5,2248.9,0.8248]
[1750676760127,0.55,2249.3,2248.5,0.7923]
[1750676760328,1.903,2249.5,2248.9,0.7923]
[1750676760629,2.7253,2249.9,2249.0,11.12961637]
[1750676760849,0.8223,2249.9,2249.1,0.81836792]
[1750676761051,0.8223,2249.9,2249.1,15.26455849]
[1750676761216,0.8223,2249.9,2249.2,0.02196791]
[1750676761217,0.27253,2249.8,2249.2,0.02196791]
[1750676761422,1.903,2250.2,2249.4,0.7964]
[1750676761614,0.0555668,2250.1,2249.4,0.7964]
[1750676761815,1.903,2250.2,2249.4,0.7964]
[1750676762111,0.0555668,2250.1,2249.4,0.7964]
[1750676762345,1.903,2250.2,2249.4,4.44549369]
[1750676762534,2.17572,2250.2,2249.5,5.25596315]
[1750676762712,0.27272,2250.2,2249.5,0.81065523]
[1750676763046,0.6055616,2250.1,2249.5,0.7887]
[1750676765048,0.55,2250.0,2249.5,0.7887]
[1750676765250,0.05556692,2249.9,2249.5,0.7887]
[1750676770085,0.05556692,2249.9,2249.2,1.33649]
[1750676770364,0.55,2249.8,2249.2,0.7897]
[1750676770542,0.0555723,2249.7,2249.2,0.7897]
[1750676771443,0.55,2249.9,2249.2,5.23564169]
[1750676771642,0.55,2249.9,2249.2,5.23566748]
[1750676772160,1.903,2250.2,2249.4,0.7664]
[1750676772161,0.55,2250.1,2249.4,0.7664]
[1750676772455,0.55,2250.1,2249.4,5.21199624]
[1750676773394,1.903,2250.2,2249.5,4.46732609]
[1750676773677,1.902,2250.2,2249.6,5.21069309]
[1750676773840,0.0555603,2250.1,2249.6,0.7655]
[1750676774574,1.902,2250.2,2249.6,0.7655]
[1750676775971,0.05556033,2250.1,2249.6,0.7655]
[1750676779142,1.902,2250.2,2249.6,5.21072588]
[1750676779477,2.17111,2250.2,2249.7,0.7558]
[1750676779872,1.902,2250.2,2249.7,4.4450014]
[1750676780074,1.902,2250.2,2249.8,4.46670738]
[1750676780279,11.4581,2250.7,2249.8,4.46670738]
[1750676780280,1.93,2250.6,2249.9,0.7558]
[1750676780476,0.55,2250.5,2249.9,0.7558]
[1750676782880,1.93,2250.6,2250.0,0.7837]
[1750676783069,0.05555378,2250.5,2250.0,0.7837]
[1750676784096,0.55,2250.4,2249.4,10.0]
[1750676784397,0.05555813,2250.3,2249.5,2.139382]
[1750676784675,0.55,2250.2,2249.5,0.8031]
[1750676784876,2.81606574,2250.1,2249.5,0.8031]
[1750676785082,0.33660657,2250.0,2249.5,0.8031]
[1750676785386,0.05556483,2249.9,2249.5,0.8031]
[1750676785687,0.55,2249.9,2249.5,0.8031]
[1750676785983,0.33660657,2250.0,2249.5,0.8031]
[1750676785984,0.05557019,2249.8,2249.5,0.8031]
[1750676786951,0.05556744,2249.9,2249.5,0.8031]
[1750676787879,0.33660657,2250.0,2249.5,0.8031]
[1750676788580,0.05556743,2249.9,2249.5,0.8031]
[1750676790089,0.60556743,2249.9,2249.5,0.8031]
[1750676790489,0.60556743,2249.9,2249.0,0.8287]
[1750676790676,0.55,2249.8,2249.0,3.30211757]
[1750676790994,0.55,2249.8,2249.1,10.0]
[1750676790995,0.05557316,2249.7,2249.1,10.0]
[1750676791288,0.83117316,2249.7,2249.1,10.0]
[1750676791990,0.55,2249.6,2249.0,0.8287]
[1750676792171,0.05557802,2249.5,2249.0,0.8287]
[1750676792365,0.38669582,2249.5,2249.0,0.8287]
[1750676792566,0.55,2249.4,2248.7,0.7719]
[1750676792802,0.55,2249.2,2248.7,0.7719]
[1750676793005,0.87848381,2249.3,2248.5,0.7884]
[1750676793006,0.55,2249.0,2248.5,0.7884]
[1750676793298,0.82909383,2248.9,2248.5,0.7884]
[1750676793606,0.55,2248.8,2248.5,0.7884]
[1750676793792,0.55,2248.8,2248.2,0.7514]
[1750676794103,0.05559582,2248.7,2248.2,0.7514]
[1750676794664,0.55,2248.8,2248.2,0.7514]
[1750676796291,0.0555965,2248.7,2248.2,0.7514]
[1750676796596,0.0555965,2248.7,2248.2,1.37448787]
[1750676797670,0.55,2248.8,2248.2,1.37448787]
[1750676797879,1.93,2249.1,2248.2,1.37448787]
[1750676797880,2.48,2249.1,2248.3,15.6152202]
[1750676798080,12.48,2249.1,2248.3,15.6152202]
[1750676798283,12.48,2249.1,2248.3,11.16751637]
[1750676798497,13.8031,2249.1,2248.3,14.23617656]
[1750676798874,13.8031,2249.1,2248.3,18.68396384]
[1750676799072,3.2531,2249.1,2248.3,18.68396384]
[1750676799271,1.93,2249.1,2248.5,0.8203]
[1750676799495,1.93,2249.1,2248.7,0.7784]
[1750676799678,1.93,2249.1,2248.7,0.80039291]
[1750676799890,1.1489178,2249.5,2248.7,0.7784]
[1750676799891,0.05558178,2249.4,2248.7,0.7784]
[1750676800101,0.55,2249.4,2248.7,2.35669192]
[1750676800413,0.05558171,2249.4,2248.7,2.33470112]
[1750676800772,0.55,2249.4,2248.7,2.35669192]
[1750676802139,0.05558171,2249.3,2248.7,2.33470112]
[1750676802902,3.0789178,2249.5,2248.7,2.33470112]
[1750676803103,0.05558024,2249.4,2248.8,0.70237242]
[1750676803304,0.05558024,2249.4,2248.8,0.68038458]
[1750676803504,0.05558024,2249.4,2248.7,2.33470112]
[1750676810789,3.0789178,2249.5,2248.8,0.8453865]
[1750676811321,10.683,2249.6,2248.8,0.8453865]
[1750676811507,1.919,2249.5,2248.8,0.8453865]
[1750676811713,1.919,2249.5,2248.9,0.8077]
[1750676811912,1.919,2249.5,2249.0,0.82967746]
[1750676812315,10.683,2249.6,2249.1,0.7844]
[1750676812488,1.919,2249.7,2249.1,1.75433012]
[1750676812824,0.0555704,2249.6,2249.1,1.75433012]
[1750676813035,0.0555704,2249.6,2249.1,0.7844]
[1750676814409,1.919,2249.7,2249.1,0.7844]
[1750676814637,0.0555704,2249.6,2249.1,0.7844]
[1750676816252,0.8397704,2249.6,2249.1,0.7844]
[1750676816407,0.55,2249.5,2249.1,0.7844]
[1750676817021,0.55,2249.5,2248.8,0.8186]
[1750676817224,1.18900081,2249.4,2248.8,0.8186]
[1750676818823,0.55,2249.6,2248.9,0.84818686]
[1750676819150,1.919,2249.7,2248.9,0.84818686]
[1750676819439,9.237,2249.7,2248.9,0.84818686]
[1750676819654,9.237,2249.7,2249.0,0.7567]
[1750676819942,9.237,2249.7,2249.2,0.7567]
[1750676820444,0.05557058,2249.6,2249.2,0.7567]
[1750676823447,0.60557058,2249.6,2248.6,20.571854]
[1750676823655,1.43367058,2249.6,2249.0,0.7912]
[1750676825222,1.3781,2249.6,2249.0,0.7912]
[1750676825421,2.70781,2249.6,2249.0,0.7912]
[1750676827166,0.0555777,2249.5,2249.0,0.7912]
[1750676828220,0.55,2249.4,2249.0,0.7912]
[1750676828655,0.05558039,2249.3,2249.0,0.7912]
[1750676829723,0.05558062,2249.4,2249.0,0.7912]
[1750676829946,1.33191968,2249.4,2249.0,0.7912]
[1750676830665,8.63691968,2249.4,2249.0,0.7912]
[1750676833060,8.58133906,2249.4,2249.0,0.7912]
[1750676834254,0.0555806,2249.3,2249.0,0.7912]
[1750676834555,8.58133906,2249.4,2249.0,0.7912]
[1750676834735,0.91313391,2249.3,2249.0,0.7912]
[1750676834938,0.96871449,2249.3,2249.0,0.7912]
[1750676835726,2.469,2249.2,2248.8,2.121671]
[1750676835972,0.05558732,2249.1,2248.8,2.121671]
[1750676836373,0.05558732,2249.1,2248.8,0.7849]
[1750676836579,0.42435944,2249.1,2248.8,0.7849]
[1750676840878,0.36877212,2249.1,2248.8,0.7849]
[1750676841255,0.55,2249.0,2248.5,1.337015]
[1750676841457,7.34559127,2248.9,2248.4,0.8235]
[1750676841764,7.34559127,2248.9,2248.4,2.160592]
[1750676841982,7.29,2248.9,2248.4,2.160592]
[1750676842501,7.34559088,2248.9,2248.4,2.160592]
[1750676843202,0.78955909,2248.8,2248.4,1.337092]
[1750676843356,7.34559088,2248.9,2248.5,0.8328]
[1750676843357,7.29,2248.9,2248.5,0.8328]
[1750676844487,0.55,2249.0,2248.5,0.8328]
[1750676844488,1.9,2248.8,2248.5,0.8328]
[1750676845991,1.77965476,2248.8,2248.5,0.8328]
[1750676849809,1.77965476,2248.8,2248.5,2.169809]
[1750676849961,1.77965476,2248.8,2248.5,3.09247378]
[1750676850619,0.05558928,2248.7,2248.5,0.8328]
[1750676850824,1.77965476,2248.8,2248.5,0.8328]
[1750676851398,0.05559291,2248.7,2248.5,0.8328]
[1750676852302,0.05559291,2248.7,2248.3,2.097645]
[1750676852604,0.81039291,2248.7,2248.3,0.7605]
[1750676854204,1.06939768,2248.7,2248.0,10.797]
[1750676854400,0.81039291,2248.7,2248.1,1.337247]
[1750676855694,0.81039291,2248.7,2248.1,8.39408575]
[1750676855695,0.05559291,2248.7,2248.1,8.39408575]
[1750676855893,1.77965476,2248.8,2248.4,0.8198]
[1750676855894,1.9,2248.8,2248.4,0.8198]
[1750676857383,0.8043,2248.7,2248.1,1.337247]
[1750676857589,0.85989158,2248.7,2248.2,0.8273]
[1750676858412,1.9,2248.7,2248.3,7.07885726]
[1750676858720,1.9,2248.7,2248.3,7.05683875]
[1750676858874,1.9,2248.7,2248.2,1.08938109]
[1750676860073,1.9,2248.7,2248.2,1.11139499]
[1750676860381,1.9,2248.7,2248.2,1.08938109]
[1750676860582,1.9,2248.7,2248.4,0.8082]
[1750676860995,0.8186,2249.0,2248.4,0.8082]
[1750676861194,1.9,2248.9,2248.4,0.8082]
[1750676861393,0.8186,2249.0,2248.4,0.8082]
[1750676861814,1.9,2248.9,2248.4,0.8082]
[1750676862127,1.9,2248.8,2248.4,1.10929992]
[1750676862301,1.9,2248.8,2248.5,7.05683875]
[1750676863195,1.9,2248.8,2248.4,1.10929992]
[1750676864615,1.9,2248.8,2248.4,1.13130423]
[1750676865524,1.9,2248.8,2248.4,1.10929992]
[1750676865728,1.9,2248.8,2248.5,0.30280056]
[1750676868086,0.7916,2248.7,2248.3,0.970359]
[1750676868289,0.7916,2248.7,2248.0,0.45626393]
[1750676868290,0.05558748,2248.6,2248.2,0.7621]
[1750676868589,0.05558748,2248.6,2248.0,1.732459]
[1750676870123,0.7916,2248.7,2248.0,1.75448299]
[1750676870296,0.05559731,2248.6,2248.1,11.17655446]
[1750676870487,0.7916,2248.7,2248.1,11.17655446]
[1750676870910,1.897,2248.6,2248.1,11.17655446]
[1750676871491,1.897,2248.6,2248.1,1.17655446]
[1750676872019,0.05559726,2248.5,2248.1,1.17655446]
[1750676872235,0.05559726,2248.5,2248.0,1.20650485]
[1750676872625,0.05559726,2248.5,2248.0,0.7621]
[1750676873526,0.05559726,2248.5,2247.9,0.0110616]